fUST/lending_fUST_20240927
["ID","MTS","AMOUNT","RATE_DAILY","PERIOD"]
[339269523,1727423445949,-200.0,0.00023,2]
[339269524,1727423445958,-151.0,0.00023003,7]
[339269525,1727423445967,-151.0,0.00023003,7]
[339269526,1727423445976,-279.361945,0.00023003,7]
[339269527,1727423445985,-151.0,0.00023003,7]
[339269529,1727423445994,-151.0,0.00023013,7]
[339269530,1727423446003,-151.0,0.00023013,7]
[339269531,1727423446012,-407.13577052,0.00023013,2]
[339269532,1727423446021,-500.0,0.00023013,2]
[339269533,1727423446030,-879.26,0.00023013,2]
[339269534,1727423446039,-995.37,0.00023013,2]
[339269535,1727423446048,-1140.52,0.00023013,2]
[339269536,1727423446057,-500.0,0.00023013,2]
[339269537,1727423446067,-151.0,0.00023013,7]
[339269538,1727423446076,-886.59,0.00023013,2]
[339269539,1727423446085,-151.0,0.00023013,7]
[339269540,1727423446095,-317.03367,0.00023013,7]
[339269541,1727423446104,-317.03367,0.00023013,7]
[339269542,1727423446113,-151.0,0.00023013,7]
[339269543,1727423446122,-1581.49,0.00023013,2]
[339269545,1727423446131,-296.90495739,0.00023013,2]
[339269547,1727423446140,-500.0,0.00023013,2]
[339269548,1727423446150,-1681.96,0.00023013,2]
[339269551,1727423446159,-500.0,0.00023013,2]
[339269552,1727423446169,-11483.47,0.00023013,2]
[339269553,1727423446179,-2104.04,0.00023013,2]
[339269554,1727423446189,-256.75,0.000231,31]
[339269555,1727423446198,-256.75,0.000231,31]
[339269556,1727423446207,-256.75,0.000231,31]
[339269557,1727423446217,-256.75,0.000231,31]
[339269558,1727423446226,-256.75,0.000231,31]
[339269559,1727423446236,-256.75,0.000231,31]
[339269560,1727423446245,-256.75,0.000231,31]
[339269561,1727423446255,-256.75,0.000231,31]
[339269562,1727423446264,-256.75,0.000231,31]
[339269563,1727423446274,-256.75,0.000231,31]
[339269564,1727423446283,-256.75,0.000231,31]
[339269565,1727423446294,-256.75,0.000231,31]
[339269566,1727423446303,-256.75,0.000231,31]
[339269567,1727423446312,-256.75,0.000231,31]
[339269568,1727423446321,-256.75,0.000231,31]
[339269569,1727423446330,-256.75,0.000231,31]
[339269570,1727423446339,-256.75,0.000231,31]
[339269571,1727423446349,-256.75,0.000231,31]
[339269572,1727423446358,-256.75,0.000231,31]
[339269573,1727423446368,-256.75,0.000231,31]
[339269574,1727423446377,-256.75,0.000231,31]
[339269575,1727423446392,-256.75,0.000231,31]
[339269576,1727423446402,-256.75,0.000231,31]
[339269577,1727423446416,-256.75,0.000231,31]
[339269578,1727423446426,-2000.0,0.0002312,2]
[339269579,1727423446435,-587.0,0.00023153,2]
[339269580,1727423446444,-168.942612,0.000232,5]
[339269581,1727423446453,-302.39527296,0.0002323,2]
[339269582,1727423446463,-302.36509981,0.0002323,2]
[339269583,1727423446472,-1500.0,0.00023231,2]
[339269584,1727423446482,-1111.0,0.00023233,120]
[339269585,1727423446492,-500.0,0.00023287,2]
[339269586,1727423446503,-500.0,0.00023287,2]
[339269587,1727423446512,-500.0,0.00023287,2]
[339269588,1727423446522,-500.0,0.00023287,2]
[339269589,1727423446531,-500.0,0.00023287,2]
[339269590,1727423446540,-500.0,0.00023287,2]
[339269591,1727423446551,-500.0,0.00023287,2]
[339269592,1727423446560,-500.0,0.00023287,2]
[339269593,1727423446569,-500.0,0.00023287,2]
[339269594,1727423446578,-500.0,0.00023287,2]
[339269595,1727423446587,-500.0,0.00023287,2]
[339269596,1727423446596,-553.70719363,0.00023287,2]
[339269597,1727423446606,-151.0,0.00023287,7]
[339269598,1727423446615,-151.0,0.00023287,7]
[339269599,1727423446625,-151.0,0.00023287,7]
[339269600,1727423446638,-286.854387,0.00023287,7]
[339269601,1727423446647,-500.0,0.00023287,2]
[339269602,1727423446657,-151.0,0.00023287,7]
[339269603,1727423446666,-151.0,0.00023287,7]
[339269604,1727423446773,-879.26,0.00023287,2]
[339269605,1727423446782,-537.53557,0.00023287,7]
[339269606,1727423446792,-995.37,0.00023287,2]
[339269607,1727423446802,-1140.52,0.00023287,2]
[339269608,1727423446813,-500.0,0.00023287,2]
[339269609,1727423446823,-886.59,0.00023287,2]
[339269610,1727423446832,-309.826123,0.00023287,7]
[339269611,1727423446842,-309.826123,0.00023287,7]
[339269612,1727423446851,-1581.49,0.00023287,2]
[339269613,1727423446861,-500.0,0.00023287,2]
[339269614,1727423446870,-1681.96,0.00023287,2]
[339269615,1727423446879,-500.0,0.00023287,2]
[339269616,1727423446892,-151.0,0.00023287,7]
[339269617,1727423446902,-153.936186,0.00023287,7]
[339269618,1727423446911,-11483.47,0.00023287,2]
[339269619,1727423446920,-2104.04,0.00023287,2]
[339269620,1727423446929,-200.0,0.00023385,120]
[339269621,1727423446938,-302.39527296,0.0002346,2]
[339269622,1727423446948,-302.36509981,0.0002346,2]
[339269623,1727423446957,-500.0,0.00023561,2]
[339269624,1727423446966,-879.26,0.00023561,2]
[339269625,1727423446975,-995.37,0.00023561,2]
[339269626,1727423446984,-1140.52,0.00023561,2]
[339269627,1727423446993,-500.0,0.00023561,2]
[339269628,1727423447003,-886.59,0.00023561,2]
[339269629,1727423447011,-1581.49,0.00023561,2]
[339269630,1727423447021,-377.63680779,0.00023561,2]
[339269631,1727423447030,-1681.96,0.00023561,2]
[339269632,1727423447039,-500.0,0.00023561,2]
[339269633,1727423447049,-11483.47,0.00023561,2]
[339269634,1727423447058,-2104.04,0.00023561,2]
[339269635,1727423447067,-150.112233,0.000236,5]
[339269636,1727423447077,-254.8,0.00023659,2]
[339269637,1727423447087,-302.39527296,0.0002369,2]
[339269638,1727423447097,-302.36509981,0.0002369,2]
[339269639,1727423447106,-500.0,0.00023835,2]
[339269640,1727423447116,-879.26,0.00023835,2]
[339269641,1727423447126,-995.37,0.00023835,2]
[339269642,1727423447138,-1140.52,0.00023835,2]
[339269643,1727423447148,-500.0,0.00023835,2]
[339269644,1727423447159,-886.59,0.00023835,2]
[339269645,1727423447169,-1581.49,0.00023835,2]
[339269646,1727423447177,-1681.96,0.00023835,2]
[339269647,1727423447188,-500.0,0.00023835,2]
[339269648,1727423447197,-11483.47,0.00023835,2]
[339269649,1727423447208,-2104.04,0.00023835,2]
[339269650,1727423447218,-150.112233,0.000239,4]
[339269651,1727423447228,-302.39527296,0.0002392,2]
[339269652,1727423447237,-302.36509981,0.0002392,2]
[339269653,1727423447247,-3088.97245557,0.00023957,2]
[339269654,1727423447256,-2013.11986034,0.00023965,2]
[339269655,1727423447265,-288.5746376,0.00024,30]
[339269656,1727423447274,-500.0,0.00024,2]
[339269657,1727423447287,-250.0,0.00024,2]
[339269658,1727423447297,-153.0,0.00024,2]
[339269659,1727423447306,-2000.0,0.0002402,2]
[339269660,1727423447316,-500.0,0.00024109,2]
[339269661,1727423447325,-879.26,0.00024109,2]
[339269662,1727423447335,-995.37,0.00024109,2]
[339269663,1727423447344,-1140.52,0.00024109,2]
[339269664,1727423447354,-500.0,0.00024109,2]
[339269665,1727423447363,-886.59,0.00024109,2]
[339269666,1727423447372,-1581.49,0.00024109,2]
[339269667,1727423447382,-1681.96,0.00024109,2]
[339269668,1727423447395,-500.0,0.00024109,2]
[339269669,1727423447405,-1733.26990181,0.00024109,2]
[339269670,1727423447425,-9750.20009819,0.00024109,2]
[339269671,1727423447433,-2104.04,0.00024109,2]
[339269672,1727423447443,-453.59290944,0.0002415,4]
[339269673,1727423447452,-453.54764972,0.0002415,4]
[339269674,1727423447461,-201.0,0.00024164,2]
[339269675,1727423447471,-256.75,0.000242,31]
[339269676,1727423447480,-256.75,0.000242,31]
[339269677,1727423447490,-256.75,0.000242,31]
[339269678,1727423447503,-256.75,0.000242,31]
[339269679,1727423447513,-256.75,0.000242,31]
[339269680,1727423447522,-256.75,0.000242,31]
[339269681,1727423447532,-256.75,0.000242,31]
[339269682,1727423447545,-256.75,0.000242,31]
[339269683,1727423447554,-256.75,0.000242,31]
[339269684,1727423447563,-256.75,0.000242,31]
[339269685,1727423447575,-256.75,0.000242,31]
[339269686,1727423447584,-256.75,0.000242,31]
[339269687,1727423447593,-256.75,0.000242,31]
[339269688,1727423447602,-256.75,0.000242,31]
[339269689,1727423447612,-256.75,0.000242,31]
[339269690,1727423447621,-256.75,0.000242,31]
[339269691,1727423447631,-256.75,0.000242,31]
[339269692,1727423447641,-256.75,0.000242,31]
[339269693,1727423447650,-256.75,0.000242,31]
[339269694,1727423447659,-256.75,0.000242,31]
[339269695,1727423447668,-256.75,0.000242,31]
[339269696,1727423447678,-256.75,0.000242,31]
[339269697,1727423447687,-256.75,0.000242,31]
[339269698,1727423447696,-256.75,0.000242,31]
[339269699,1727423447705,-150.112233,0.000243,3]
[339269700,1727423447715,-453.59290944,0.0002438,4]
[339269701,1727423447725,-453.54764972,0.0002438,4]
[339269702,1727423447734,-352.45335995,0.00024383,2]
[339269703,1727423447743,-879.26,0.00024383,2]
[339269704,1727423447752,-995.37,0.00024383,2]
[339269705,1727423447762,-1140.52,0.00024383,2]
[339269706,1727423447771,-500.0,0.00024383,2]
[339269707,1727423447780,-886.59,0.00024383,2]
[339269708,1727423447790,-347.720359,0.00024383,7]
[339269709,1727423447799,-347.720359,0.00024383,7]
[339269710,1727423447808,-151.0,0.00024383,7]
[339269711,1727423447817,-1581.49,0.00024383,2]
[339269712,1727423447827,-151.0,0.00024383,7]
[339269713,1727423447836,-151.0,0.00024383,7]
[339269714,1727423447845,-151.0,0.00024383,7]
[339269715,1727423447854,-198.247332,0.00024383,7]
[339269716,1727423447864,-198.247332,0.00024383,7]
[339269717,1727423447873,-177.418133,0.00024383,7]
[339269718,1727423447882,-177.418133,0.00024383,7]
[339269719,1727423447895,-1681.96,0.00024383,2]
[339269720,1727423447904,-500.0,0.00024383,2]
[339269721,1727423447913,-11483.47,0.00024383,2]
[339269722,1727423447923,-2104.04,0.00024383,2]
[339269723,1727423447933,-165.65142743,0.00024548,2]
[339269724,1727423447942,-200.0,0.00024595,120]
[339269725,1727423447951,-150.112233,0.000246,2]
[339269726,1727423447960,-453.59290944,0.0002461,4]
[339269727,1727423447970,-453.54764972,0.0002461,4]
[339269728,1727423447979,-600.0,0.00024657,3]
[339269729,1727423447988,-598.70113145,0.00024657,3]
[339269730,1727423447997,-879.26,0.00024657,2]
[339269731,1727423448006,-995.37,0.00024657,2]
[339269732,1727423448016,-1140.52,0.00024657,2]
[339269733,1727423448026,-500.0,0.00024657,2]
[339269734,1727423448037,-886.59,0.00024657,2]
[339269735,1727423448047,-408.08,0.00024657,2]
[339269736,1727423448056,-408.08,0.00024657,2]
[339269737,1727423448066,-408.08,0.00024657,2]
[339269738,1727423448075,-408.08,0.00024657,2]
[339269739,1727423448085,-408.08,0.00024657,2]
[339269740,1727423448095,-408.08,0.00024657,2]
[339269741,1727423448105,-408.08,0.00024657,2]
[339269742,1727423448116,-408.08,0.00024657,2]
[339269743,1727423448126,-408.08,0.00024657,2]
[339269744,1727423448136,-408.08,0.00024657,2]
[339269745,1727423448146,-408.08,0.00024657,2]
[339269746,1727423448155,-408.08,0.00024657,2]
[339269747,1727423448165,-408.08,0.00024657,2]
[339269748,1727423448174,-408.08,0.00024657,2]
[339269749,1727423448184,-408.08,0.00024657,2]
[339269750,1727423448193,-408.08,0.00024657,2]
[339269751,1727423448203,-408.08,0.00024657,2]
[339269752,1727423448212,-408.08,0.00024657,2]
[339269753,1727423448222,-408.08,0.00024657,2]
[339269754,1727423448233,-408.08,0.00024657,2]
[339269755,1727423448242,-408.08,0.00024657,2]
[339269756,1727423448253,-1581.49,0.00024657,2]
[339269757,1727423448262,-151.0,0.00024657,7]
[339269758,1727423448271,-228.638831,0.00024657,7]
[339269759,1727423448283,-151.0,0.00024657,7]
[339269760,1727423448293,-151.0,0.00024657,7]
[339269761,1727423448302,-151.0,0.00024657,7]
[339269762,1727423448312,-151.0,0.00024657,7]
[339269763,1727423448321,-151.0,0.00024657,7]
[339269764,1727423448331,-151.0,0.00024657,7]
[339269765,1727423448341,-1681.96,0.00024657,2]
[339269766,1727423448350,-500.0,0.00024657,2]
[339269767,1727423448361,-11483.47,0.00024657,2]
[339269768,1727423448370,-2104.04,0.00024657,2]
[339269769,1727423448379,-660.0,0.00024658,2]
[339269770,1727423448389,-200.0,0.00024658,15]
[339269771,1727423448399,-380.0,0.00024658,2]
[339269772,1727423448409,-372.776536,0.00024658,7]
[339269773,1727423448418,-372.776536,0.00024658,7]
[339269774,1727423448428,-372.776536,0.00024658,7]
[339269775,1727423448437,-372.776536,0.00024658,7]
[339269776,1727423448447,-200.0,0.00024658,2]
[339269777,1727423448457,-290.0,0.0002466,2]
[339269778,1727423448466,-468.71,0.000247,14]
[339269779,1727423448475,-6296.09,0.000247,14]
[339269780,1727423448485,-14150.12,0.000247,14]
[339269781,1727423448497,-278.409609,0.000247,7]
[339269782,1727423448506,-278.409609,0.000247,7]
[339269783,1727423448516,-181.522127,0.000247,7]
[339269784,1727423448525,-181.522127,0.000247,7]
[339269785,1727423448537,-151.0,0.000247,7]
[339269786,1727423448548,-151.0,0.000247,7]
[339269787,1727423448558,-151.0,0.000247,7]
[339269788,1727423448568,-823.0,0.0002477,2]
[339269789,1727423448578,-453.59290944,0.0002484,4]
[339269790,1727423448587,-453.54764972,0.0002484,4]
[339269791,1727423448597,-2500.0,0.00024865,2]
[339269792,1727423448607,-186.911765,0.00024931,7]
[339269793,1727423448616,-151.0,0.00024931,7]
[339269794,1727423448625,-151.0,0.00024931,7]
[339269795,1727423448635,-879.26,0.00024931,2]
[339269796,1727423448646,-995.37,0.00024931,2]
[339269797,1727423448655,-1140.52,0.00024931,2]
[339269798,1727423448665,-196.47688288,0.00024931,2]
[339269799,1727423448675,-886.59,0.00024931,2]
[339269800,1727423448684,-408.08,0.00024931,2]
[339269801,1727423448694,-1581.49,0.00024931,2]
[339269802,1727423448703,-1681.96,0.00024931,2]
[339269803,1727423448714,-321.06162318,0.00024931,2]
[339269804,1727423448725,-11483.47,0.00024931,2]
[339269805,1727423448733,-2104.04,0.00024931,2]
[339269806,1727423448743,-200.0,0.00024988,120]
[339269807,1727423448752,-1585.17543639,0.00025,2]
[339269808,1727423448761,-547.7,0.00025,31]
[339269809,1727423448770,-164.49344774,0.00025,2]
[339269810,1727423448779,-199.04,0.00025,2]
[339269811,1727423448788,-300.0,0.00025,2]
[339269812,1727423448797,-300.0,0.00025,2]
[339269813,1727423448806,-300.0,0.00025,2]
[339269814,1727423448816,-300.0,0.00025,2]
[339269815,1727423448826,-300.0,0.00025,2]
[339269816,1727423448834,-300.0,0.00025,2]
[339269817,1727423448845,-300.0,0.00025,2]
[339269818,1727423448855,-300.0,0.00025,2]
[339269819,1727423448865,-300.0,0.00025,2]
[339269820,1727423448874,-1033.87107884,0.00025,2]
[339269821,1727423448883,-74814.2039374,0.00025,2]
[339269822,1727423449170,-1171.65420637,0.00025,2]
[339269823,1727423451518,-2990.72069354,0.00025,2]
[339269824,1727423453418,-21263.388408,0.00025,2]
[339269825,1727423453440,-9020.886,0.00020276,2]
[339269826,1727423453449,-65804.73062994,0.00025,2]
[339269827,1727423453802,-5862.59932717,0.00025,2]
[339269828,1727423453998,-660.0,0.00024658,2]
[339269829,1727423454008,-175.92,0.00025,2]
[339269830,1727423455587,-18375.43459339,0.00025,2]
[339269831,1727423457165,-338.82529773,0.00019041,2]
[339269832,1727423457175,-1000.0,0.000208,2]
[339269833,1727423457184,-1000.0,0.000213,2]
[339269834,1727423457194,-34843.70117227,0.00025,2]
[339269888,1727424547312,-190.5800487,0.00015946,2]
[339269889,1727424548146,-832.2172632,0.00016112,2]
[339269890,1727424548168,-250.0,0.00016235,2]
[339269891,1727424548189,-646.25863967,0.00016331,2]
[339269892,1727424548245,-201.48907333,0.00016331,2]
[339269893,1727424548267,-553.371323,0.00016785,2]
[339269894,1727424554171,-300.0,0.00017218,2]
[339269895,1727424554196,-300.0,0.00017218,2]
[339269896,1727424554219,-500.0,0.00017219,2]
[339269897,1727424554246,-500.0,0.00017219,2]
[339269898,1727424554271,-500.0,0.00017219,2]
[339269899,1727424554304,-500.0,0.00017219,2]
[339269900,1727424554330,-500.0,0.00017219,2]
[339269901,1727424554356,-500.0,0.00017219,2]
[339269902,1727424554378,-500.0,0.00017219,2]
[339269903,1727424554400,-424.73864301,0.00017219,2]
[339269904,1727424554423,-500.0,0.00017219,2]
[339269905,1727424554444,-500.0,0.00017219,2]
[339269906,1727424554467,-500.0,0.00017219,2]
[339269907,1727424554488,-500.0,0.00017219,2]
[339269908,1727424554511,-500.0,0.00017219,2]
[339269909,1727424554533,-257.57911054,0.00017219,2]
[339269910,1727424554558,-225.88252783,0.00017219,2]
[339269911,1727424554582,-500.0,0.00017219,2]
[339269912,1727424554604,-500.0,0.00017219,2]
[339269913,1727424554625,-500.0,0.00017219,2]
[339269914,1727424554650,-500.0,0.00017219,2]
[339269915,1727424554671,-500.0,0.00017219,2]
[339269916,1727424554694,-500.0,0.00017219,2]
[339269917,1727424554714,-500.0,0.00017219,2]
[339269918,1727424554737,-500.0,0.00017219,2]
[339269919,1727424554759,-500.0,0.00017219,2]
[339269920,1727424554781,-500.0,0.00017219,2]
[339269921,1727424554803,-500.0,0.00017219,2]
[339269922,1727424554824,-500.0,0.00017219,2]
[339269923,1727424554845,-500.0,0.00017219,2]
[339269924,1727424554868,-500.0,0.00017219,2]
[339269925,1727424554889,-500.0,0.00017219,2]
[339269926,1727424554913,-500.0,0.00017219,2]
[339269927,1727424554936,-500.0,0.00017219,2]
[339269928,1727424554959,-500.0,0.00017219,2]
[339269929,1727424554982,-500.0,0.00017219,2]
[339269930,1727424555006,-225.60305673,0.00017219,2]
[339269931,1727424555032,-500.0,0.00017219,2]
[339269932,1727424555060,-500.0,0.00017219,2]
[339269933,1727424555083,-442.32690123,0.00017219,2]
[339269935,1727424556182,-57.67309877,0.00017219,2]
[339269936,1727424556207,-500.0,0.00017219,2]
[339269937,1727424556229,-500.0,0.00017219,2]
[339269938,1727424556252,-500.0,0.00017219,2]
[339269939,1727424556275,-500.0,0.00017219,2]
[339269940,1727424556297,-500.0,0.00017219,2]
[339269941,1727424556322,-500.0,0.00017219,2]
[339269942,1727424556343,-500.0,0.00017219,2]
[339269943,1727424556367,-500.0,0.00017219,2]
[339269944,1727424556390,-500.0,0.00017219,2]
[339269945,1727424556413,-500.0,0.00017219,2]
[339269946,1727424556435,-500.0,0.00017219,2]
[339269947,1727424556460,-500.0,0.00017219,2]
[339269948,1727424556481,-500.0,0.00017219,2]
[339269949,1727424556504,-500.0,0.00017219,2]
[339269950,1727424556526,-500.0,0.00017219,2]
[339269951,1727424556551,-500.0,0.00017219,2]
[339269952,1727424556572,-500.0,0.00017219,2]
[339269953,1727424556595,-500.0,0.00017219,2]
[339269954,1727424556617,-500.0,0.00017219,2]
[339269955,1727424556639,-500.0,0.00017219,2]
[339269956,1727424556662,-500.0,0.00017219,2]
[339269957,1727424556683,-500.0,0.00017219,2]
[339269958,1727424556705,-500.0,0.00017219,2]
[339269959,1727424556726,-500.0,0.00017219,2]
[339269960,1727424556746,-5999.09282218,0.00017222,2]
[339269961,1727424559138,-9247.42737826,0.00017222,2]
[339269962,1727424564249,-9653.47979956,0.00017222,2]
[339269963,1727424601758,3000.0,0.00016988,2]
[339269991,1727424632512,-200.230748,0.00017273,2]
[339269992,1727424632521,-500.0,0.00017273,2]
[339269994,1727424632532,-1294.8698207,0.00017279,2]
[339269996,1727424632541,-175.553522,0.00017288,2]
[339269998,1727424632550,-175.553522,0.00017335,2]
[339270000,1727424632560,-175.553522,0.00017382,2]
[339270002,1727424632570,-175.553522,0.0001743,2]
[339270004,1727424632579,-175.553522,0.00017477,2]
[339270006,1727424632588,-175.553522,0.00017525,2]
[339270008,1727424632598,-175.553522,0.00017572,2]
[339270009,1727424632607,-175.553522,0.0001762,2]
[339270011,1727424632617,-175.553522,0.00017667,2]
[339270012,1727424632626,-175.553522,0.00017714,2]
[339270013,1727424632636,-175.553522,0.00017762,2]
[339270014,1727424632645,-175.553522,0.00017809,2]
[339270015,1727424632654,-999.82937443,0.00017821,2]
[339270016,1727424632663,-175.553522,0.00017857,2]
[339270017,1727424632673,-166.29061959,0.00017904,2]
[339270042,1727424638592,-9.26290241,0.00017904,2]
[339270044,1727424638602,-175.553522,0.00017952,2]
[339270047,1727424638613,-175.553522,0.00017999,2]
[339270049,1727424638622,-175.553522,0.00018046,2]
[339270051,1727424638631,-300.0,0.00018093,2]
[339270053,1727424638642,-300.0,0.00018093,2]
[339270055,1727424638651,-175.553522,0.00018094,2]
[339270057,1727424638660,-175.553522,0.00018141,2]
[339270059,1727424638670,-175.553522,0.00018189,2]
[339270061,1727424638679,-333.52428422,0.00018473,2]
[339270063,1727424638689,-500.0,0.00018473,2]
[339270065,1727424638698,-500.0,0.00018473,2]
[339270067,1727424638708,-500.0,0.00018473,2]
[339270070,1727424638729,-500.0,0.00019177,2]
[339270072,1727424638741,-500.0,0.00019177,2]
[339270075,1727424638754,-500.0,0.00019177,2]
[339270077,1727424638764,-500.0,0.00019177,2]
[339270079,1727424638774,-422.58825278,0.00019177,2]
[339270081,1727424638783,-469.51145075,0.00019177,2]
[339270083,1727424638793,-250.84212339,0.00019177,2]
[339270085,1727424638802,-505.33,0.00019178,2]
[339270087,1727424638811,-544.6,0.00019178,2]
[339270089,1727424638821,-500.0,0.00019178,2]
[339270091,1727424638832,-500.0,0.00019178,2]
[339270093,1727424638842,-591.25,0.00019178,2]
[339270095,1727424638852,-500.0,0.00019178,2]
[339270097,1727424638861,-500.0,0.00019178,2]
[339270099,1727424638871,-386.29035934,0.00019178,2]
[339270101,1727424638880,-506.23067711,0.00019178,2]
[339270103,1727424638890,-500.0,0.00019178,2]
[339270105,1727424638899,-500.0,0.00019178,2]
[339270107,1727424638909,-500.0,0.00019178,2]
[339270109,1727424638918,-614.41819999,0.00019178,2]
[339270111,1727424638929,-500.0,0.00019178,2]
[339270113,1727424638939,-500.0,0.00019178,2]
[339270115,1727424638949,-500.0,0.00019178,2]
[339270117,1727424638959,-500.0,0.00019178,2]
[339270119,1727424638969,-500.0,0.00019178,2]
[339270121,1727424638980,-500.0,0.00019178,2]
[339270123,1727424638990,-630.12290026,0.00019178,2]
[339270125,1727424639000,-510.96468312,0.00019178,2]
[339270127,1727424639011,-1913.91,0.00019178,2]
[339270129,1727424639020,-500.0,0.00019178,2]
[339270131,1727424639030,-170.556487,0.00019178,2]
[339270133,1727424639040,-445.4218728,0.00019178,4]
[339270135,1727424639049,-193.741464,0.00019178,2]
[339270137,1727424639059,-5640.5739736,0.00019178,2]
[339270139,1727424639069,-500.0,0.00019452,2]
[339270141,1727424639079,-500.0,0.00019452,2]
[339270143,1727424639088,-500.0,0.00019452,2]
[339270145,1727424639098,-500.0,0.00019452,2]
[339270147,1727424639108,-500.0,0.00019452,2]
[339270149,1727424639118,-500.0,0.00019452,2]
[339270151,1727424639128,-500.0,0.00019452,2]
[339270153,1727424639138,-1913.91,0.00019452,2]
[339270155,1727424639148,-500.0,0.00019452,2]
[339270157,1727424639158,-225.88353182,0.00019476,2]
[339270159,1727424639172,-225.88353182,0.00019546,2]
[339270160,1727424639181,-153.0,0.00019567,2]
[339270162,1727424639191,-153.0,0.00019567,2]
[339270163,1727424639200,-153.0,0.00019567,2]
[339270164,1727424639210,-153.0,0.00019567,2]
[339270165,1727424639219,-153.0,0.00019567,2]
[339270166,1727424639228,-153.0,0.00019567,2]
[339270167,1727424639238,-153.0,0.00019567,2]
[339270168,1727424639250,-153.0,0.00019567,2]
[339270169,1727424639260,-153.0,0.00019567,2]
[339270170,1727424639269,-153.0,0.00019567,2]
[339270171,1727424639279,-153.0,0.00019567,2]
[339270172,1727424639289,-153.0,0.00019567,2]
[339270173,1727424639299,-153.0,0.00019567,2]
[339270174,1727424639309,-153.0,0.00019571,2]
[339270175,1727424639319,-153.0,0.00019571,2]
[339270176,1727424639328,-153.0,0.00019571,2]
[339270177,1727424639338,-153.0,0.00019571,2]
[339270178,1727424639352,-153.0,0.00019571,2]
[339270179,1727424639362,-153.0,0.00019571,2]
[339270180,1727424639371,-153.0,0.00019571,2]
[339270181,1727424639382,-153.0,0.00019571,2]
[339270182,1727424639392,-153.0,0.00019571,2]
[339270183,1727424639402,-153.0,0.00019571,2]
[339270184,1727424639411,-153.0,0.00019571,2]
[339270185,1727424639421,-153.0,0.00019571,2]
[339270186,1727424639431,-153.0,0.00019571,2]
[339270187,1727424639440,-153.0,0.00019571,2]
[339270188,1727424639450,-153.0,0.00019576,2]
[339270189,1727424639459,-153.0,0.00019576,2]
[339270190,1727424639469,-153.0,0.00019576,2]
[339270191,1727424639478,-153.0,0.00019576,2]
[339270192,1727424639488,-153.0,0.00019576,2]
[339270193,1727424639498,-153.0,0.00019576,2]
[339270194,1727424639507,-153.0,0.00019576,2]
[339270195,1727424639517,-153.0,0.00019576,2]
[339270196,1727424639526,-153.0,0.00019576,2]
[339270197,1727424639536,-153.0,0.00019576,2]
[339270198,1727424639549,-153.0,0.00019576,2]
[339270199,1727424639559,-153.0,0.00019576,2]
[339270200,1727424639568,-153.0,0.00019576,2]
[339270201,1727424639579,-153.0,0.0001958,2]
[339270202,1727424639589,-153.0,0.0001958,2]